Cogmind - Beta 13 @@@ ROGUE MODE // 2024.04.13 @ 17:19:44 Player: N00Bk1llr Result: Destroyed by G-34 Mercenary with Small Laser Performance ------------- Evolutions (1) 500 Regions Visited (3) 600 Robots Destroyed (78) 390 Value Destroyed (2053) 2053 Prototype IDs (6) 120 Alien Tech Used (0) 0 Bonus (60) 60 TOTAL SCORE: 3723 Bonus ------- Follower Combat Kills 60 Cogmind --------- Core Integrity 0/400 Matter 300/300 Energy 78/100 System Corruption 2% Temperature Cool (95) Movement Treading (400) Ox3 Location -9/Storage Parts ------- > --- POWER (1) -------- (None) > --- PROPULSION (3) --- Improved Treads > --- UTILITY (3) ------ Heat Sink Huge Storage Unit Improved Targeting Computer > --- WEAPON (2) ------- Particle Cannon Particle Cannon > --- INVENTORY (25) --- Ion Engine Ion Engine Light Nuclear Core Improved Treads Improved Treads Improved Treads Disposable Heat Sink Seismic Detector Seismic Detector Seismic Detector Utility Shielding Utility Shielding Light Armor Plating Light Armor Plating Shield Generator Hacking Suite Particle Cannon Mini Grenade Launcher Mini Grenade Launcher Mini Grenade Launcher Mini Grenade Launcher Plasma Cutter Flail Flail Shock Maul Peak State ------------ > --- POWER ------------ Improved Ion Engine > --- PROPULSION ------- Light Treads Improved Treads Improved Treads > --- UTILITY ---------- Improved Heat Sink Huge Storage Unit Improved Targeting Computer > --- WEAPON ----------- Particle Cannon Shock Maul > --- INVENTORY -------- Light Treads Heat Sink Heat Sink Disposable Heat Sink Seismic Detector Seismic Detector Seismic Detector Utility Shielding Utility Shielding Shield Generator Hacking Suite Particle Cannon Particle Cannon Particle Cannon Light Cannon Grenade Launcher Grenade Launcher Mini Grenade Launcher Mini Grenade Launcher Mini Grenade Launcher Mini Grenade Launcher Plasma Cutter Flail Flail [Rating: 24] Favorites ----------- Power Light Ion Engine Engine Light Ion Engine Power Core Light Nuclear Core Propulsion Aluminum Leg Treads Improved Treads Leg Aluminum Leg Wheel Wheel Utility Huge Storage Unit Device Improved Heat Sink Storage Huge Storage Unit Processor Targeting Computer Protection Hardened Light Armor Plating Weapon Heavy EM Pulse Gun Energy Gun Heavy EM Pulse Gun Energy Cannon Particle Cannon Ballistic Gun Light Assault Rifle Ballistic Cannon Light Cannon Launcher Grenade Launcher Impact Weapon Shock Maul Build | -11 -10 -9 -9 ------- Run | Yrd Mat Mat Sto Slots Evolved 2 | . . 2 . Power . | . . . . Propulsion 1 | . . 1 . Utility 1 | . . 1 . Weapon . | . . . . Parts Attached 50 | 6 10 16 18 Power 7 | 1 . 4 2 Engine 6 | 1 . 3 2 Core 1 | . . 1 . Reactor . | . . . . Propulsion 16 | 2 2 6 6 Treads 10 | . 1 3 6 Leg 3 | 2 1 . . Wheel 3 | . . 3 . Hover . | . . . . Flight . | . . . . Utility 9 | 1 3 1 4 Device 3 | 1 . 1 1 Storage 2 | . 2 . . Processor 2 | . 1 . 1 Hackware . | . . . . Protection 2 | . . . 2 Artifact . | . . . . Weapon 18 | 2 5 5 6 Energy Gun 6 | . 4 1 1 Energy Cannon 6 | . . 3 3 Ballistic Gun 2 | 2 . . . Ballistic Cannon 1 | . . . 1 Launcher 2 | . 1 1 . Special Weapon . | . . . . Impact Weapon 1 | . . . 1 Slashing Weapon . | . . . . Piercing Weapon . | . . . . Special Melee Weapon . | . . . . Unidentified Prototypes 2 | . . . 2 Parts Lost 20 | . 2 8 10 Power 5 | . . 3 2 Propulsion 8 | . 1 2 5 Utility 1 | . . . 1 Weapon 6 | . 1 3 2 Highest Loss Streak 5 | . 2 5 5 To Critical Strikes . | . . . . Average Slot Usage (%) 95 | . 99 81 99 Engine 12 | . 14 10 10 Treads 13 | . 3 18 32 Leg 13 | . 24 1 . Wheel 1 | . . 6 . Device 2 | . 1 . 5 Storage 12 | . 13 11 11 Processor 12 | . 12 11 11 Protection 1 | . . . 5 Energy Gun 11 | . 17 11 . Energy Cannon 6 | . . 10 19 Ballistic Gun 5 | . 10 . . Naked Turns . | . . . . Heaviest Build 100 | 6 89 96 100 Greatest Support 69 | 20 20 66 69 Greatest Overweight (x) 30 | . 4 30 3 Average Overweight (x) 2 | . 3 2 1 Largest Inventory Capacity 25 | 5 25 25 25 Average Capacity 23 | 5 23 25 25 Most Carried 25 | 2 21 25 25 Average Carried 17 | . 14 20 24 Final Capacity 25 | 5 25 25 25 Final Carried 25 | 2 19 25 25 Class Distribution -------------------- 93% | Mutant 6% | Scavenger-Mutant Dominant Class ---------------- Mutant | -10/Materials Mutant | -9/Materials Mutant | -9/Storage Resources | -11 -10 -9 -9 ----------- Run | Yrd Mat Mat Sto Matter Collected 893 | 254 184 185 270 Remotely . | . . . . Salvage Created 3122 | 38 887 806 1391 Parts 182 | 3 48 46 85 Haulers Intercepted 4 | . 2 1 1 Recyclers Shooed 3 | . 1 1 1 Parts Field Recycled . | . . . . Retrieved Matter . | . . . . Parts Self-Destructed . | . . . . Prevented . | . . . . Kills | -11 -10 -9 -9 ------- Run | Yrd Mat Mat Sto Combat Hostiles Destroyed 52 | 1 12 14 25 Melee 1 | . . . 1 Guns 15 | 1 8 6 . Cannons 28 | . . 4 24 AOE 8 | . 4 4 . Classes Destroyed 12 | 1 7 1 3 Worker 5 | . 1 . 4 Builder 4 | . 1 3 . Hauler 4 | . 2 1 1 Recycler 6 | . 2 2 2 Mechanic 1 | . . . 1 Operator 2 | . 1 1 . Watcher 4 | . 3 . 1 Swarmer 7 | . 3 4 . Grunt 29 | 1 9 6 13 Duelist 2 | . . . 2 Protector 1 | . . . 1 Sentry 13 | . . 4 9 Best Kill Streak 10 | 1 3 10 9 Combat Bots Only 6 | 1 3 5 6 Max Kills in Single Turn 3 | 1 3 3 2 Gunslinging . | . . . . Exploded 3 | . 2 3 . Melee 1 | . . . 1 Uniques/NPCs Destroyed . | . . . . Combat | -11 -10 -9 -9 -------- Run | Yrd Mat Mat Sto Hostile Shots Fired 278 | 2 72 68 136 Missed 67 | . 21 16 30 Damage Taken 2917 | 21 607 768 1521 Core 549 | . 140 250 159 Absorbed by Shields . | . . . . Regen/Repaired (Parts) 44 | . 44 . . Core Remaining (%) 72 | 100 44 . . Volleys Fired 181 | 3 66 38 74 Largest 2 | 2 2 2 2 Hottest 136 | 40 90 136 136 Shots Fired 347 | 6 131 72 138 Gun 171 | 6 130 35 . Cannon 172 | . . 34 138 Launcher 4 | . 1 3 . Special . | . . . . Kinetic 101 | 6 72 . 23 Thermal 149 | . . 34 115 Explosive 4 | . 1 3 . Electromagnetic 93 | . 58 35 . Robot Hit Streak 20 | 1 14 12 20 Robot Miss Streak 5 | 2 4 3 5 Penetration Max . | . . . . Secondary Targets 2 | . 2 . . Max Gunslinging Chain 1 | . 1 . . Shots Hit Robots 232 | 2 84 49 97 Core Hits 102 | 2 37 21 42 Critical Kills . | . . . . Critical Parts Destroyed . | . . . . Critical Strikes . | . . . . Melee Attacks . | . . . . Impact . | . . . . Slashing . | . . . . Piercing . | . . . . Sneak Attacks . | . . . . Combat Hostiles . | . . . . Follow-up Attacks . | . . . . Damage Inflicted 4479 | 18 1165 1333 1963 Guns 1375 | 18 980 377 . Cannons 2411 | . . 475 1936 Explosions 666 | . 185 481 . Melee . | . . . . Ramming 27 | . . . 27 Kinetic 774 | 18 389 . 367 Thermal 2424 | . 141 714 1569 Explosive 286 | . 44 242 . Electromagnetic 968 | . 591 377 . Impact . | . . . . Slashing . | . . . . Piercing . | . . . . Highest Corruption 2 | . . . 2 Average Corruption 2 | . . . 2 Corruption Purged . | . . . . Corruption Blocked . | . . . . Effects 8 | . . . 8 Message Errors 3 | . . . 3 Matter Fused 3 | . . . 3 Heat Flow Errors 1 | . . . 1 Parts Rejected 1 | . . . 1 Overload Shots . | . . . . Overflow Damage 51 | . 4 28 19 Projectiles 30 | . . 11 19 Explosions 21 | . 4 17 . Melee . | . . . . Knockbacks 5 | . . . 5 Impact 1 | . . . 1 Kinetic 4 | . . . 4 Secondary . | . . . . Self-Inflicted Damage 124 | . 16 108 . Shots 4 | . 1 3 . Rammed 6 | . . . 6 Targets Rammed 7 | . . . 7 Kicked . | . . . . Crushed 1 | . . . 1 Highest Temperature 550 | 6 296 330 550 Average Temperature 83 | 6 69 79 93 Received Heat Transfer 1107 | 12 288 171 636 Effects 16 | . . 2 14 Shutdowns 2 | . . . 2 Interference 5 | . . 2 3 Matter Decay 1 | . . . 1 Damage (minor) 1 | . . . 1 Damage (major) 7 | . . . 7 Siege Activations . | . . . . Robots Corrupted . | . . . . Combat Hostiles . | . . . . Parts Fried 3 | . 1 2 . Impact Corruptions . | . . . . Robots Melted . | . . . . Combat Hostiles . | . . . . Parts Melted 6 | . . 3 3 Heat Transferred 4090 | . 150 1201 2739 Parts Sabotaged . | . . . . Parts Stolen . | . . . . Parts Stripped . | . . . . Power Chain Reactions 4 | . 2 2 . Alert | -11 -10 -9 -9 ------- Run | Yrd Mat Mat Sto Peak Influence 352 | 20 126 260 352 Initial 39 | . 13 33 39 Average 87 | 2 47 69 192 Maximum Alert Level 1 | . . 1 1 Low Security (%) 84 | 100 100 92 45 Level 1 15 | . . 7 54 Level 2 . | . . . . Level 3 . | . . . . Level 4 . | . . . . Level 5 . | . . . . High Security . | . . . . Max Security . | . . . . Squads Dispatched 9 | . 3 2 4 Investigation 3 | . 2 . 1 Extermination . | . . . . Reinforcement 4 | . 1 2 1 Assault 2 | . . . 2 Garrison . | . . . . Intercept . | . . . . Searches Triggered . | . . . . Construction Impeded 1 | . . 1 . Haulers Reinforced . | . . . . Active Scanning Responses . | . . . . Cargo Convoy Interrupts . | . . . . Stealth | -11 -10 -9 -9 --------- Run | Yrd Mat Mat Sto Distress Signals 5 | . 1 2 2 Communications Jammed . | . . . . Distress Signals . | . . . . Times Spotted 79 | 1 25 19 34 Peak Tracking Total 6 | 1 4 5 6 Tactical Retreats . | . . . . Traps | -11 -10 -9 -9 ------- Run | Yrd Mat Mat Sto Traps Triggered 2 | . 1 . 1 Indirectly . | . . . . Trap Hack Attempts . | . . . . Triggered . | . . . . Disarmed . | . . . . Reprogrammed . | . . . . Reused . | . . . . Traps Extracted . | . . . . Installed . | . . . . Triggered . | . . . . Machines | -11 -10 -9 -9 ---------- Run | Yrd Mat Mat Sto Machines Disabled 5 | . . 2 3 Max in Single Turn 1 | . . 1 1 Machines Repaired . | . . . . Machines Dismantled . | . . . . Machines Sabotaged . | . . . . Overloaded Fab Kills . | . . . . Hacking | -11 -10 -9 -9 --------- Run | Yrd Mat Mat Sto Machines Accessed 17 | . 6 5 6 Terminals 16 | . 5 5 6 Fabricators . | . . . . Repair Stations 1 | . 1 . . Recycling Units . | . . . . Scanalyzers . | . . . . Garrison Access . | . . . . Total Hacks 50 | . 13 15 22 Successful 21 | . 4 8 9 Failed 29 | . 9 7 13 Catastrophic 5 | . 3 1 1 Database Lockouts . | . . . . Manual 25 | . 5 7 13 Terminals 48 | . 11 15 22 Fabricators . | . . . . Repair Stations 2 | . 2 . . Recycling Units . | . . . . Scanalyzers . | . . . . Garrison Access . | . . . . Terminal Hacks 15 | . 2 6 7 Robot Analysis 1 | . . 1 . Prototype ID Bank 2 | . . 1 1 Open Door 2 | . . . 2 Branch Access Points 1 | . . . 1 Emergency Access Points 1 | . . 1 . Unreport Threat 1 | . . 1 . Locate Traps 2 | . 1 . 1 Hauler Manifests 2 | . . 1 1 Registered Components 2 | . . 1 1 Registered Prototypes 1 | . 1 . . Fabricator Hacks . | . . . . Repair Station Hacks 2 | . 2 . . Scan Component 1 | . 1 . . Repair 1 | . 1 . . Recycling Unit Hacks . | . . . . Scanalyzer . | . . . . Garrison Access Hacks . | . . . . Unauthorized Hacks 4 | . . 2 2 Terminals 4 | . . 2 2 Botnet 4 | . . 2 2 Fabricators . | . . . . Repair Stations . | . . . . Recycling Units . | . . . . Scanalyzers . | . . . . Garrison Access . | . . . . Data Cores Recovered . | . . . . Used . | . . . . Hacking Detections 17 | . 7 5 5 Full Trace Events 4 | . 3 . 1 Feedback Events . | . . . . Feedback Blocked . | . . . . Robot Schematics Acquired . | . . . . Robots Built . | . . . . Authchips . | . . . . Time . | . . . . Total Robot Build Rating . | . . . . Part Schematics Acquired . | . . . . Parts Built . | . . . . Authchips . | . . . . Time . | . . . . Total Part Build Rating . | . . . . Parts Repaired 1 | . 1 . . Time 38 | . 38 . . Parts Recycled . | . . . . Recycled Matter . | . . . . Retrieved Matter . | . . . . Retrieved Components . | . . . . Parts Scanalyzed . | . . . . Part Schematics Acquired . | . . . . Parts Damaged . | . . . . Bothacking | -11 -10 -9 -9 ------------ Run | Yrd Mat Mat Sto Used RIF Installer . | . . . . Robots Hacked . | . . . . Non-combat . | . . . . Combat . | . . . . Robot Hacks Applied . | . . . . Relay Couplers Released . | . . . . Fabnet Peak Effective % . | . . . . Robots Rewired . | . . . . Allies Hacked . | . . . . Hacks Repelled . | . . . . Allies | -11 -10 -9 -9 -------- Run | Yrd Mat Mat Sto Total Allies 2 | . . . 2 Largest Group 2 | . . . 2 Highest-Rated Group 62 | . . . 62 Highest-Rated Ally 31 | . . . 31 Total Orders . | . . . . Ally Attacks 10 | . . . 10 Total Damage 188 | . . . 188 Kills 2 | . . . 2 Allies Corrupted . | . . . . Allies Melted 1 | . . . 1 Intel | -11 -10 -9 -9 ------- Run | Yrd Mat Mat Sto Robot Analysis Total 1 | . . 1 . Derelict Logs Recovered . | . . . . Drone Launches . | . . . . Drone Recoveries . | . . . . Exploration | -11 -10 -9 -9 ------------- Run | Yrd Mat Mat Sto Turns Passed 5276 | 97 2836 1016 1327 Spaces Moved 1651 | 74 748 399 430 Core 18 | 16 . 2 . Treads 771 | . 141 200 430 Legs 665 | 58 607 . . Wheels 197 | . . 197 . Hover . | . . . . Flight . | . . . . Fastest Speed 50 | 50 120 116 240 Average Speed 277 | 104 349 214 240 Slowest Speed 1550 | 120 480 1550 400 Overloaded Moves . | . . . . Propulsion Burnouts . | . . . . Robots Hopped . | . . . . Cave-ins Triggered . | . . . . Exploration Rate (%) 51 | 5 95 35 61 Regions Visited 3 Branch Regions 1 Pre-discovered Areas 1 | . . . 1 Known Exits Taken . | . . . . Unknown Exits Taken 3 | 1 1 1 . Scrap Searched . | . . . . Spaces Dug . | . . . . Terrain Destroyed 42 | . 13 29 . Melee . | . . . . Projectile . | . . . . AOE 42 | . 13 29 . Terrain Rammed . | . . . . Walls Destroyed . | . . . . Machines Disabled . | . . . . Actions | -11 -10 -9 -9 --------- Run | Yrd Mat Mat Sto Total 2015 | 85 860 487 583 Wait 35 | 1 1 11 22 Move 1648 | 73 747 398 430 Hop . | . . . . Pick Up 56 | 2 23 15 16 Fast Attach 25 | 6 6 7 6 Attach 14 | . 2 6 6 Detach 8 | . 5 2 1 Swap 11 | . 2 3 6 Drop 30 | . 8 7 15 Fire 181 | 3 66 38 74 Melee . | . . . . Ram . | . . . . Kick . | . . . . Crush 7 | . . . 7 Escape Stasis . | . . . . Rewire . | . . . . Trap . | . . . . Miscellaneous . | . . . . Route ------- -11/Scrapyard -10/Materials (discovered 4 exits: *Mat x3 / [*Min]) -9/Materials (discovered 2 exits: [*Min] / *Sto) -9/Storage (discovered 2 exits: [*Mat] / Rec) History --------- Turn | Location | Event 2 | -11/Scrapyard | Met Revision 17 75 | -11/Scrapyard | Discovered new exit (range 8) 98 | -11/Scrapyard | Entered Materials 305 | -10/Materials | Build established: Mutant 468 | -10/Materials | Discovered new exit (range 13) 1341 | -10/Materials | Discovered new exit (range 12) 1753 | -10/Materials | Repaired Lgt. Nuclear Core 1812 | -10/Materials | Discovered new exit (range 11) 2370 | -10/Materials | Discovered new exit (range 8) 2482 | -10/Materials | Core integrity fell below 50% 2934 | -10/Materials | Entered another Materials area 2934 | -9/Materials | Evolved 2 slots: Propulsion x1, Utility x1 3114 | -9/Materials | Lost 5 parts (1p2n2w) 3130 | -9/Materials | Core integrity fell below 50% 3226 | -9/Materials | Discovered new exit (range 14) 3780 | -9/Materials | Discovered new exit (range 11) 3950 | -9/Materials | Entered Storage 3965 | -9/Storage | Met a pair of Derelict thieves 4349 | -9/Storage | Core integrity fell below 20% 4405 | -9/Storage | Lost 5 parts (1p2n2w) 4493 | -9/Storage | Learned location of Armory (-4) 4910 | -9/Storage | Discovered new exit (range 7) 4963 | -9/Storage | Identified exit to Recycling 5277 | -9/Storage | Destroyed by G-34 Mercenary with Small Laser Last Messages --------------- 05172_ G-34 Mercenary destroyed. 05172_ K-01 Serf destroyed. 05178_ K-01 Serf collects debris. 05201_ OIVYMWD%NL5Z50SPBMF0DR%4FIGLLB0:Z&P7AQ,G 05201_ K-01 Serf collects debris. 05214_ M-13 Machinist destroyed. 05217_ I-25 Savior destroyed. 05227_ Acquired 13 matter. 05233_ System corrupted: Heat flow error (+154). 05254_ System corrupted: Matter fused (-8). 05255_ Storage Shell breached. 05264_ Imp. Ion Engine severed. 05267_ Imp. Treads destroyed. 05270_ Crushed L-31 Rogue. 05270_ L-31 Rogue destroyed. 05271_ Acquired 3 matter. 05273_ Imp. Treads destroyed. [A new version of Cogmind is available, see F1 News page.] 05276_ K-01 Serf collects debris. Map ----- +----------------------------------------------------+ | ?# """ # % ## #??????# # #?????????? | | # """ # ##*######## # """ #?????????? | | # """ # +!%= + """ #?????????? | | + # ##+##### # """ #?????????? | | # # #=[% % #%% # #?????????? | | ##"Y"############# *= %+ ########?????????? | | ??#"""#???????????#! %#### #????????????????? | | ??#####???????????# = % [#??# #############+###+ | | #???????????????????# #??# %[= % | | ????????????????????# =#??# ########!%=* | | ????????????????????#####+##### # [ %%!#!%%!= | | ????????????????????????# + ! = +%[%% | | ????????????????????????# #######! = =#**!######+ | | ????????????????????????#!#?????# %[## ##?????? | | ????????????????????????#=#?????#! ## #??????? | | ????????????????????????#%#?????# ## ##?????? | | ????????????????????????#!#?????######## #?????? | | ????????????????????????#k#???? #?????# T%#?????? | | ????????????????????????#=#??""""??????# #?????? | | ?????????????????########*# """"#?????## ##?????? | | ?????????? + """"#??????# #??????? | | ?????????????????######## # """"#??????# #??????? | | ????????????????????????# #?? #??????# #?????## | | ????????????????????????# #????###??????# ####### | | ??????????????????????###g######????????# + | | ??????????????????????# *@ #????##### # | | ??????????????????????+/%! #????# + # | | ??????????????????????# " " #????###T# + | | ??????????????????????# "!!"" #??????### ##### # | | ??????????????????????# "!/"?" #????????# #???# # | | ??????????????????????#%"" %?? #????????# #???# # | | ??????????????????????# ?"=*??#????????# #???# # | | ??????????????????????? ? "??????????# #???# ## | | ????????????????????????? % ??????????# #???# #? | | ??????????????????????#####+############# ##??# #? | | ???????????????????"" # = ^ #??# #? | | ???????????????????"" / #??# #? | | ??????????????????????# ^ #??# # | | ??????????????????????#####/#########+######??# # | | ??????????????????????????????????# ##?????# + | | ??????????????????????????????????# T#?????# # | | ??????????????????????????????????##" "###????# #] | | ??????????????????????????????????#! #????# + | | ??????????????????????????????????# !!#????### | | ??????????????????????????????????#! ! #???????? | | ??????????????????????????????????#! ! !#???????? | | ??????????????????????????????????########???????? | | ?????????????????????????????????????????????????? | | | | | +----------------------------------------------------+ Best States ------------- Heat Dissipation 42 Energy Generation 14 Energy Capacity 265 Matter Stores 300 Matter Capacity 300 Sight Range 16 Terrain Scan Density 10 Armor Coverage 150 Evasion (%) 55 Targeting Accuracy 6 Recoil Reduction 3 Item Schematics ----------------- None Robot Schematics ------------------ None Fabricated ------------ Nothing Alien Tech Used ----------------- None Achievements -------------- None Challenges ------------ None Game ------ Seed GuidanceSwarmField Manual? 0 Play Time 00:27:09 Cumulative 43.9 hours Start 2024.04.13 @ 16:28:33 End 2024.04.13 @ 17:19:44 Sessions 3 Manual Loads 0 Difficulty Rogue Special Mode None Game No. 75 Rogue 53 Adventurer 22 Explorer 0 Win Type - Total 1 Types 1/0/0/0/0/0/0/0/0 Lore% 27 Gallery% 44 Achievement% 41 Wizard Run 0 Options --------- Layout 2 ASCII 0 Keyboard 1 Movement Numpad Keybinds 0 Fullscreen 2 Font 24/Smallcaps Map View 50x44 Zoom Use 0% Tactical HUD 1 Map Filters NONE Filters NONE Steam 1 RUN: 948704d1-c0be-41da-907e-6e9bca6906d9